fUST/lending_fUST_20241226
["ID","MTS","AMOUNT","RATE_DAILY","PERIOD"]
[346708877,1735222236078,-1009.88,0.00019465,2]
[346708878,1735222236087,-1693.53,0.00019465,2]
[346708879,1735222236097,-500.0,0.00019465,2]
[346708880,1735222236106,-492.54575983,0.00019465,2]
[346708881,1735222236115,-500.0,0.00019465,2]
[346708882,1735222236124,-500.0,0.00019465,2]
[346708883,1735222236134,-500.0,0.00019465,2]
[346708884,1735222236143,-500.0,0.00019465,2]
[346708885,1735222236153,-500.0,0.00019465,2]
[346708886,1735222236162,-500.0,0.00019465,2]
[346708887,1735222236172,-500.0,0.00019465,2]
[346708888,1735222236181,-500.0,0.00019465,2]
[346708889,1735222236190,-500.0,0.00019465,2]
[346708890,1735222236200,-500.0,0.00019465,2]
[346708891,1735222236210,-500.0,0.00019465,2]
[346708892,1735222236220,-500.0,0.00019465,2]
[346708893,1735222236231,-310.94,0.00019465,2]
[346708894,1735222236239,-500.0,0.00019465,2]
[346708895,1735222236249,-500.0,0.00019465,2]
[346708896,1735222236259,-500.0,0.00019465,2]
[346708897,1735222236268,-500.0,0.00019465,2]
[346708898,1735222236278,-500.0,0.00019465,2]
[346708899,1735222236287,-500.0,0.00019465,2]
[346708900,1735222236296,-500.0,0.00019465,2]
[346708901,1735222236306,-500.0,0.00019465,2]
[346708902,1735222236316,-241.68828087,0.00019465,2]
[346708903,1735222236326,-500.0,0.00019465,2]
[346708904,1735222236337,-997.52,0.00019465,2]
[346708905,1735222236348,-500.0,0.00019465,2]
[346708906,1735222236358,-500.0,0.00019465,2]
[346708907,1735222236368,-500.0,0.00019465,2]
[346708908,1735222236377,-500.0,0.00019465,2]
[346708909,1735222236389,-500.0,0.00019465,2]
[346708910,1735222236398,-577.22,0.00019465,2]
[346708911,1735222236408,-500.0,0.00019465,2]
[346708912,1735222236420,-500.0,0.00019465,2]
[346708913,1735222236429,-500.0,0.00019465,2]
[346708914,1735222236439,-500.0,0.00019465,2]
[346708915,1735222236448,-1382.23,0.00019465,2]
[346708916,1735222236458,-500.0,0.00019465,2]
[346708917,1735222236468,-500.0,0.00019465,2]
[346708918,1735222236477,-500.0,0.00019465,2]
[346708919,1735222236487,-621.4759173,0.00019465,2]
[346708920,1735222236496,-500.0,0.00019465,2]
[346708921,1735222236507,-500.0,0.00019465,2]
[346708922,1735222236519,-500.0,0.00019466,2]
[346708923,1735222236528,-500.0,0.00019466,2]
[346708924,1735222236538,-500.0,0.00019466,2]
[346708925,1735222236547,-500.0,0.00019466,2]
[346708926,1735222236556,-500.0,0.00019466,2]
[346708927,1735222236566,-500.0,0.00019466,2]
[346708928,1735222236575,-500.0,0.00019466,2]
[346708929,1735222236585,-638.79492996,0.00019466,2]
[346708930,1735222236594,-500.0,0.00019466,2]
[346708931,1735222236604,-500.0,0.00019466,2]
[346708932,1735222236613,-500.0,0.00019466,2]
[346708933,1735222236622,-500.0,0.00019466,2]
[346708934,1735222236632,-2396.7,0.00019466,2]
[346708935,1735222236641,-9324.55,0.00019466,2]
[346708936,1735222236651,-500.0,0.00019466,2]
[346708937,1735222236661,-500.0,0.00019466,2]
[346708938,1735222236670,-500.0,0.00019466,2]
[346708939,1735222236679,-500.0,0.00019466,2]
[346708940,1735222236689,-505.83,0.00019466,2]
[346708941,1735222236697,-239.90558795,0.00019466,2]
[346708942,1735222236708,-500.0,0.00019467,2]
[346708943,1735222236718,-500.0,0.00019467,2]
[346708944,1735222236727,-500.0,0.00019467,2]
[346708945,1735222236737,-500.0,0.00019467,2]
[346708946,1735222236747,-497.80596493,0.00019467,2]
[346708947,1735222236756,-500.0,0.00019467,2]
[346708948,1735222236771,-500.0,0.00019467,2]
[346708949,1735222236781,-500.0,0.00019467,2]
[346708950,1735222236791,-500.0,0.00019467,2]
[346708951,1735222236800,-274.54920157,0.00019467,2]
[346708952,1735222236809,-500.0,0.00019467,2]
[346708953,1735222236820,-500.0,0.00019467,2]
[346708954,1735222236828,-500.0,0.00019467,2]
[346708955,1735222236838,-500.0,0.00019467,2]
[346708956,1735222236847,-500.0,0.00019467,2]
[346708957,1735222236856,-500.0,0.00019467,2]
[346708958,1735222236866,-500.0,0.00019467,2]
[346708959,1735222236875,-500.0,0.00019467,2]
[346708960,1735222236885,-500.0,0.00019467,2]
[346708961,1735222236896,-500.0,0.00019467,2]
[346708962,1735222236905,-300.63,0.00019468,2]
[346708963,1735222236915,-500.0,0.00019468,2]
[346708964,1735222236926,-500.0,0.00019468,2]
[346708965,1735222236940,-500.0,0.00019468,2]
[346708966,1735222236950,-500.0,0.00019468,2]
[346708967,1735222236960,-517.95,0.00019468,2]
[346708968,1735222236970,-500.0,0.00019468,2]
[346708969,1735222236980,-500.0,0.00019468,2]
[346708970,1735222236990,-209.1,0.00019468,2]
[346708971,1735222237000,-500.0,0.00019468,2]
[346708972,1735222237011,-500.0,0.00019468,2]
[346708973,1735222237021,-500.0,0.00019468,2]
[346708974,1735222237030,-500.0,0.00019468,2]
[346708975,1735222237040,-500.0,0.00019468,2]
[346708976,1735222237049,-500.0,0.00019468,2]
[346708977,1735222237059,-500.0,0.00019468,2]
[346708978,1735222237068,-500.0,0.00019468,2]
[346708979,1735222237078,-500.0,0.00019468,2]
[346708980,1735222237088,-500.0,0.00019468,2]
[346708981,1735222237098,-500.0,0.00019468,2]
[346708982,1735222237107,-500.0,0.00019468,2]
[346708983,1735222237116,-500.0,0.00019468,2]
[346708984,1735222237127,-500.0,0.00019468,2]
[346708985,1735222237136,-500.0,0.00019468,2]
[346708986,1735222237146,-500.0,0.00019468,2]
[346708987,1735222237156,-500.0,0.00019468,2]
[346708988,1735222237166,-500.0,0.00019468,2]
[346708989,1735222237175,-560.48060759,0.00019468,2]
[346708990,1735222237186,-500.0,0.00019468,2]
[346708991,1735222237196,-527.98,0.00019468,2]
[346708992,1735222237206,-500.0,0.00019468,2]
[346708993,1735222237215,-500.0,0.00019468,2]
[346708994,1735222237225,-500.0,0.00019468,2]
[346708995,1735222237234,-500.0,0.00019468,2]
[346708996,1735222237244,-500.0,0.00019468,2]
[346708997,1735222237254,-500.0,0.00019469,2]
[346708998,1735222237266,-582.12308259,0.00019469,2]
[346708999,1735222237276,-500.0,0.00019469,2]
[346709000,1735222237286,-599.462,0.0001947,2]
[346709001,1735222237296,-500.0,0.00019473,2]
[346709002,1735222237306,-500.0,0.00019473,2]
[346709003,1735222237316,-302.63687509,0.0001957,2]
[346709004,1735222237326,-239.90558795,0.00019654,2]
[346709005,1735222237336,-500.0,0.00019738,2]
[346709006,1735222237349,-500.0,0.00019738,2]
[346709007,1735222237359,-614.33,0.00019738,2]
[346709008,1735222237369,-500.0,0.00019738,2]
[346709009,1735222237380,-500.0,0.00019738,2]
[346709010,1735222237390,-500.0,0.00019739,2]
[346709011,1735222237400,-500.0,0.00019739,2]
[346709012,1735222237410,-500.0,0.00019739,2]
[346709013,1735222237421,-582.81,0.00019739,2]
[346709014,1735222237431,-500.0,0.00019739,2]
[346709015,1735222237440,-500.0,0.00019739,2]
[346709016,1735222237450,-500.0,0.00019739,2]
[346709018,1735222237461,-500.0,0.00019739,2]
[346709020,1735222237470,-500.0,0.00019739,2]
[346709022,1735222237481,-500.0,0.00019739,2]
[346709024,1735222237491,-233.85,0.00019739,2]
[346709026,1735222237501,-418.50226248,0.00019739,2]
[346709027,1735222237511,-500.0,0.00019739,2]
[346709028,1735222237521,-500.0,0.00019739,2]
[346709029,1735222237530,-500.0,0.00019739,2]
[346709030,1735222237539,-500.0,0.00019739,2]
[346709031,1735222237549,-500.0,0.00019739,2]
[346709032,1735222237559,-500.0,0.00019739,2]
[346709033,1735222237568,-339.03778033,0.00019739,2]
[346709034,1735222237578,-500.0,0.00019739,2]
[346709035,1735222237588,-500.0,0.00019739,2]
[346709036,1735222237598,-561.02,0.00019739,2]
[346709037,1735222237608,-500.0,0.00019739,2]
[346709038,1735222237617,-500.0,0.00019739,2]
[346709040,1735222237627,-368.74868628,0.00019739,2]
[346709047,1735222237931,-3633.33131372,0.00019739,2]
[346709048,1735222237942,-698.63,0.00019739,2]
[346709049,1735222237951,-500.0,0.00019739,2]
[346709050,1735222237961,-868.8,0.00019739,2]
[346709051,1735222237970,-500.0,0.00019739,2]
[346709052,1735222237979,-500.0,0.00019739,2]
[346709054,1735222237989,-500.0,0.00019739,2]
[346709056,1735222237999,-1009.88,0.00019739,2]
[346709057,1735222238009,-1693.53,0.00019739,2]
[346709058,1735222238018,-500.0,0.00019739,2]
[346709059,1735222238028,-500.0,0.00019739,2]
[346709060,1735222238038,-500.0,0.00019739,2]
[346709061,1735222238048,-500.0,0.00019739,2]
[346709062,1735222238062,-500.0,0.00019739,2]
[346709063,1735222238072,-500.0,0.00019739,2]
[346709064,1735222238082,-500.0,0.00019739,2]
[346709065,1735222238091,-500.0,0.00019739,2]
[346709066,1735222238101,-500.0,0.00019739,2]
[346709067,1735222238110,-500.0,0.00019739,2]
[346709068,1735222238120,-500.0,0.00019739,2]
[346709069,1735222238131,-500.0,0.00019739,2]
[346709070,1735222238140,-530.67,0.00019739,2]
[346709071,1735222238150,-500.0,0.00019739,2]
[346709072,1735222238160,-500.0,0.00019739,2]
[346709073,1735222238169,-500.0,0.00019739,2]
[346709074,1735222238179,-500.0,0.00019739,2]
[346709075,1735222238189,-500.0,0.00019739,2]
[346709076,1735222238198,-500.0,0.00019739,2]
[346709077,1735222238208,-4.34868628,0.00019739,2]
[346709078,1735222238623,-153.4013351,0.00018999,2]
[346709079,1735222238634,-250.22,0.00019738,2]
[346709080,1735222238644,-495.65131372,0.00019739,2]
[346709081,1735222238653,-500.0,0.00019739,2]
[346709082,1735222238663,-997.52,0.00019739,2]
[346709083,1735222238673,-500.0,0.00019739,2]
[346709084,1735222238682,-505.72,0.00019739,2]
[346709085,1735222238692,-547.12,0.00019739,2]
[346709086,1735222238702,-500.0,0.00019739,2]
[346709087,1735222238713,-500.0,0.00019739,2]
[346709088,1735222238722,-577.22,0.00019739,2]
[346709089,1735222238732,-500.0,0.00019739,2]
[346709090,1735222238741,-500.0,0.00019739,2]
[346709091,1735222238751,-500.0,0.00019739,2]
[346709092,1735222238761,-500.0,0.00019739,2]
[346709093,1735222238771,-1382.23,0.00019739,2]
[346709094,1735222238780,-500.0,0.00019739,2]
[346709095,1735222238790,-500.0,0.00019739,2]
[346709096,1735222238799,-500.0,0.00019739,2]
[346709097,1735222238809,-643.12476019,0.00019739,2]
[346709098,1735222238819,-500.0,0.0001974,2]
[346709099,1735222238830,-500.0,0.0001974,2]
[346709100,1735222238840,-500.0,0.0001974,2]
[346709101,1735222238850,-500.0,0.0001974,2]
[346709102,1735222238859,-545.08826097,0.0001974,2]
[346709103,1735222238869,-500.0,0.0001974,2]
[346709104,1735222238879,-500.0,0.0001974,2]
[346709105,1735222238888,-500.0,0.0001974,2]
[346709106,1735222238898,-500.0,0.0001974,2]
[346709107,1735222238908,-1365.67774156,0.0001974,2]
[346709108,1735222238921,-1031.02225844,0.0001974,2]
[346709109,1735222238931,-1695.10000404,0.0001974,2]
[346709110,1735222238942,-423.79166931,0.0001974,2]
[346709126,1735222240253,-500.0,0.00019191,2]
[346709127,1735222240265,-500.0,0.00019465,2]
[346709128,1735222240274,-500.0,0.00019739,2]
[346709129,1735222240284,-3250.05,0.0001974,2]
[346709130,1735222240296,-3955.60832665,0.0001974,2]
[346709131,1735222240306,-500.0,0.0001974,2]
[346709132,1735222240315,-500.0,0.0001974,2]
[346709133,1735222240324,-208.6521971,0.0001974,2]
[346709134,1735222240337,-291.3478029,0.0001974,2]
[346709135,1735222240350,-13.88009801,0.00019741,2]
[346709136,1735222240362,-486.11990199,0.00019741,2]
[346709137,1735222240371,-500.0,0.00019741,2]
[346709138,1735222240381,-500.0,0.00019741,2]
[346709140,1735222240391,-500.0,0.00019741,2]
[346709142,1735222240400,-500.0,0.00019741,2]
[346709143,1735222240410,-500.0,0.00019741,2]
[346709144,1735222240420,-300.22615078,0.00019741,2]
[346709145,1735222240429,-500.0,0.00019741,2]
[346709146,1735222240438,-500.0,0.00019741,2]
[346709147,1735222240448,-153.21,0.00019741,2]
[346709148,1735222240458,-500.0,0.00019741,2]
[346709149,1735222240467,-500.0,0.00019741,2]
[346709150,1735222240477,-191.94,0.00019741,2]
[346709151,1735222240486,-500.0,0.00019741,2]
[346709152,1735222240496,-257.03868673,0.00019741,2]
[346709153,1735222240505,-500.0,0.00019742,2]
[346709154,1735222240515,-500.0,0.00019742,2]
[346709155,1735222240525,-500.0,0.00019742,2]
[346709156,1735222240534,-500.0,0.00019742,2]
[346709157,1735222240544,-500.0,0.00019742,2]
[346709158,1735222240553,-500.0,0.00019742,2]
[346709159,1735222240563,-500.0,0.00019742,2]
[346709160,1735222240572,-500.0,0.00019742,2]
[346709161,1735222240662,-500.0,0.00019742,2]
[346709162,1735222240672,-500.0,0.00019742,2]
[346709163,1735222240681,-500.0,0.00019742,2]
[346709164,1735222240690,-500.0,0.00019742,2]
[346709165,1735222240700,-500.0,0.00019742,2]
[346709166,1735222240709,-500.0,0.00019742,2]
[346709167,1735222240718,-500.0,0.00019742,2]
[346709168,1735222240727,-500.0,0.00019742,2]
[346709169,1735222240736,-500.0,0.00019742,2]
[346709170,1735222240746,-500.0,0.00019742,2]
[346709171,1735222240755,-500.0,0.00019742,2]
[346709172,1735222240764,-184.56,0.00019742,2]
[346709173,1735222240773,-500.0,0.00019742,2]
[346709174,1735222240782,-500.0,0.00019742,2]
[346709175,1735222240791,-500.0,0.00019743,2]
[346709176,1735222240801,-302.63687509,0.0001976,2]
[346709177,1735222240810,-239.90558795,0.00019841,2]
[346709178,1735222240820,-453.95531264,0.0001995,4]
[346709179,1735222240829,-500.0,0.00020012,2]
[346709180,1735222240839,-500.0,0.00020012,2]
[346709181,1735222240849,-614.33,0.00020012,2]
[346709182,1735222240858,-382.93,0.00020012,2]
[346709183,1735222240867,-500.0,0.00020012,2]
[346709184,1735222240876,-500.0,0.00020013,2]
[346709185,1735222240886,-604.35,0.00020013,2]
[346709186,1735222240895,-500.0,0.00020013,2]
[346709187,1735222240905,-500.0,0.00020013,2]
[346709188,1735222240914,-364.11440527,0.00020013,2]
[346709189,1735222240923,-500.0,0.00020013,2]
[346709190,1735222240933,-500.0,0.00020013,2]
[346709191,1735222240943,-500.0,0.00020013,2]
[346709192,1735222240952,-500.0,0.00020013,2]
[346709193,1735222240962,-500.0,0.00020013,2]
[346709194,1735222240971,-500.0,0.00020013,2]
[346709195,1735222240981,-500.0,0.00020013,2]
[346709196,1735222240990,-548.42,0.00020013,2]
[346709197,1735222241000,-500.0,0.00020013,2]
[346709198,1735222241011,-561.02,0.00020013,2]
[346709199,1735222241020,-500.0,0.00020013,2]
[346709200,1735222241030,-4002.08,0.00020013,2]
[346709201,1735222241039,-500.0,0.00020013,2]
[346709202,1735222241049,-532.96,0.00020013,2]
[346709203,1735222241058,-544.2,0.00020013,2]
[346709204,1735222241068,-1693.53,0.00020013,2]
[346709205,1735222241078,-500.0,0.00020013,2]
[346709206,1735222241087,-500.0,0.00020013,2]
[346709207,1735222241096,-500.0,0.00020013,2]
[346709208,1735222241106,-459.07307956,0.00020013,2]
[346709215,1735222243357,-40.92692044,0.00020013,2]
[346709216,1735222243367,-500.0,0.00020013,2]
[346709217,1735222243377,-378.42,0.00020013,2]
[346709218,1735222243387,-294.54617003,0.00020013,2]
[346709254,1735222246101,-500.0,0.00019194,2]
[346709255,1735222246111,-155.89323303,0.00020013,2]
[346709256,1735222246121,-500.0,0.00020013,2]
[346709257,1735222246131,-500.0,0.00020013,2]
[346709259,1735222246140,-500.0,0.00020013,2]
[346709260,1735222246150,-171.01,0.00020013,2]
[346709261,1735222246160,-500.0,0.00020013,2]
[346709262,1735222246170,-500.0,0.00020013,2]
[346709264,1735222246180,-500.0,0.00020013,2]
[346709266,1735222246189,-500.0,0.00020013,2]
[346709268,1735222246197,-500.0,0.00020013,2]
[346709269,1735222246206,-997.52,0.00020013,2]
[346709270,1735222246216,-574.06,0.00020013,2]
[346709271,1735222246225,-61.31214531,0.00020013,2]
[346709272,1735222246266,-438.68785469,0.00020013,2]
[346709273,1735222246277,-577.22,0.00020013,2]
[346709274,1735222246286,-61.95041414,0.00020013,2]
[346709278,1735223237129,-235.04052434,0.00017053,2]
[346709279,1735223237157,-235.04052434,0.00017225,2]
[346709280,1735223237185,-250.0,0.00017932,2]
[346709281,1735223237211,-180.43152175,0.000185,2]
[346709282,1735223237239,-150.0,0.000189,2]
[346709283,1735223237266,-151.0,0.00019177,2]
[346709284,1735223237293,-259.770874,0.00019178,2]
[346709285,1735223237320,-300.0,0.00019188,2]
[346709286,1735223237347,-300.0,0.00019188,2]
[346709287,1735223237375,-500.0,0.00019189,2]
[346709288,1735223237401,-500.0,0.00019189,2]
[346709289,1735223237425,-427.77864423,0.00019189,2]
[346709290,1735223246130,-305.82580998,0.00018997,2]
[346709291,1735223246311,-73.26633499,0.00019189,2]
[346709292,1735223246334,-500.0,0.00019189,2]
[346709293,1735223246357,-500.0,0.00019189,2]
[346709294,1735223246379,-511.29685854,0.00019189,2]
[346709295,1735223246403,-500.0,0.00019189,2]
[346709296,1735223246426,-627.18290576,0.00019189,2]
[346709297,1735223246448,-500.0,0.00019189,2]
[346709298,1735223246471,-331.1711749,0.00019189,2]
[346709299,1735223246496,-458.99444353,0.00019189,2]
[346709300,1735223246517,-501.25237563,0.00019189,2]
[346709301,1735223246540,-501.8599176,0.00019189,2]
[346709302,1735223246562,-502.04033851,0.00019189,2]
[346709303,1735223246583,-154.46699974,0.00019189,2]
[346709307,1735223351099,-183.18505293,0.00011,2]
[346709308,1735223351121,-195.11459041,0.00013497,2]
[346709309,1735223353103,-105.578367,0.00013497,2]
[346709310,1735223353124,-709.01095521,0.00017,7]
[346709311,1735223354118,-201.49695372,0.00017,7]
[346709312,1735223354142,-403.62866705,0.000188,2]
[346709313,1735223379004,151.0,0.00016495,2]
[346709314,1735223400271,400.0,0.00013973,2]
[346709315,1735223406140,381.86501385,0.00016936,2]
[346709345,1735223432340,-179.92919097,0.00018898,2]
[346709346,1735223432349,-12121.5305973,0.000189,2]
[346709347,1735223432359,-179.92919097,0.00019089,2]
[346709348,1735223432367,-500.0,0.00019188,2]
[346709349,1735223432377,-500.0,0.00019188,2]
[346709351,1735223432387,-377.0520104,0.00019188,2]
[346709387,1735223438170,-159.83880304,0.00019188,2]
[346709388,1735223438180,-500.0,0.00019188,2]
[346709389,1735223438190,-500.0,0.00019188,2]
[346709390,1735223438199,-500.0,0.00019188,2]
[346709391,1735223438209,-500.0,0.00019188,2]
[346709392,1735223438218,-511.94,0.00019188,2]
[346709394,1735223438228,-492.9849891,0.00019188,2]
[346709396,1735223438237,-500.0,0.00019188,2]
[346709397,1735223438246,-359.58995931,0.00019188,2]
[346709399,1735223438258,-926.09004069,0.00019188,2]
[346709400,1735223438267,-498.32801298,0.00019188,2]
[346709401,1735223438279,-345.53300026,0.00019189,2]
[346709402,1735223438288,-503.24476705,0.00019189,2]
[346709403,1735223438297,-500.0,0.00019189,2]
[346709404,1735223438307,-500.0,0.00019189,2]
[346709406,1735223438316,-506.5550353,0.00019189,2]
[346709407,1735223438325,-501.01436124,0.00019189,2]
[346709408,1735223438335,-500.0,0.00019189,2]
[346709409,1735223438345,-500.0,0.00019189,2]
[346709410,1735223438355,-173.549,0.00019189,2]
[346709411,1735223438364,-500.0,0.00019189,2]
[346709412,1735223438373,-500.0,0.00019189,2]
[346709413,1735223438382,-500.0,0.00019189,2]
[346709414,1735223438391,-500.0,0.00019189,2]
[346709415,1735223438401,-168.0,0.00019189,2]
[346709416,1735223438411,-500.0,0.00019189,2]
[346709417,1735223438420,-605.81,0.00019189,2]
[346709418,1735223438429,-500.0,0.00019189,2]
[346709419,1735223438438,-500.0,0.00019189,2]
[346709420,1735223438447,-500.0,0.00019189,2]
[346709421,1735223438456,-501.69171274,0.00019189,2]
[346709422,1735223438466,-502.39980787,0.00019189,2]
[346709423,1735223438475,-500.0,0.00019189,2]
[346709424,1735223438485,-500.0,0.00019189,2]
[346709425,1735223438494,-500.0,0.00019189,2]
[346709426,1735223438504,-501.62090142,0.00019189,2]
[346709427,1735223438514,-500.0,0.00019189,2]
[346709428,1735223438523,-500.0,0.00019189,2]
[346709429,1735223438533,-501.00680412,0.00019189,2]
[346709430,1735223438543,-500.0,0.00019189,2]
[346709431,1735223438552,-500.0,0.00019189,2]
[346709432,1735223438561,-500.0,0.00019189,2]
[346709433,1735223438571,-500.0,0.00019189,2]
[346709434,1735223438580,-500.0,0.00019189,2]
[346709435,1735223438590,-500.0,0.00019189,2]
[346709436,1735223438599,-500.0,0.00019189,2]
[346709437,1735223438608,-652.97,0.00019189,2]
[346709438,1735223438618,-500.0,0.00019189,2]
[346709439,1735223438627,-500.0,0.00019189,2]
[346709440,1735223438637,-781.04,0.00019189,2]
[346709441,1735223438646,-500.0,0.00019189,2]
[346709442,1735223438655,-847.23,0.00019189,2]
[346709443,1735223438664,-500.0,0.00019189,2]
[346709444,1735223438674,-501.76117965,0.00019189,2]
[346709445,1735223438683,-3592.33,0.00019189,2]
[346709446,1735223438692,-500.0,0.00019189,2]
[346709447,1735223438702,-501.49418265,0.00019189,2]
[346709448,1735223438711,-500.0,0.00019189,2]
[346709449,1735223438724,-506.06218265,0.00019189,2]
[346709450,1735223438733,-500.0,0.00019189,2]
[346709451,1735223438743,-500.0,0.00019189,2]
[346709452,1735223438752,-500.0,0.00019189,2]
[346709453,1735223438763,-504.91280932,0.00019189,2]
[346709454,1735223438772,-1470.11,0.00019189,2]
[346709455,1735223438784,-500.0,0.00019189,2]
[346709456,1735223438793,-500.0,0.00019189,2]
[346709457,1735223438803,-500.0,0.00019189,2]
[346709458,1735223438812,-500.0,0.00019189,2]
[346709459,1735223438821,-500.0,0.00019189,2]
[346709460,1735223438830,-500.0,0.00019189,2]
[346709461,1735223438839,-500.0,0.00019189,2]
[346709462,1735223438847,-500.0,0.00019189,2]
[346709463,1735223438857,-500.0,0.00019189,2]
[346709464,1735223438866,-500.0,0.00019189,2]
[346709465,1735223438877,-500.0,0.00019189,2]
[346709466,1735223438886,-501.35968707,0.00019189,2]
[346709467,1735223438895,-500.58620449,0.00019189,2]
[346709468,1735223438904,-500.0,0.00019189,2]
[346709469,1735223438913,-500.0,0.00019189,2]
[346709470,1735223438922,-500.0,0.00019189,2]
[346709471,1735223438932,-500.76052716,0.00019189,2]
[346709472,1735223438941,-500.0,0.00019189,2]
[346709473,1735223438951,-500.0,0.00019189,2]
[346709474,1735223438960,-500.0,0.00019189,2]
[346709475,1735223438970,-500.0,0.00019189,2]
[346709476,1735223438979,-500.0,0.00019189,2]
[346709477,1735223438989,-500.62730448,0.00019189,2]
[346709478,1735223438998,-338.93354112,0.00019189,2]
[346709479,1735223439007,-500.0,0.00019189,2]
[346709480,1735223439017,-500.0,0.00019189,2]
[346709481,1735223439026,-500.0,0.00019189,2]
[346709482,1735223439035,-500.0,0.00019189,2]
[346709483,1735223439045,-500.0,0.00019189,2]
[346709484,1735223439054,-500.0,0.00019189,2]
[346709485,1735223439063,-501.60660081,0.00019189,2]
[346709486,1735223439073,-500.0,0.00019189,2]
[346709487,1735223439083,-500.0,0.00019189,2]
[346709488,1735223439093,-867.22,0.00019189,2]
[346709489,1735223439103,-500.0,0.00019189,2]
[346709490,1735223439113,-500.0,0.00019189,2]
[346709491,1735223439122,-543.06132995,0.00019189,2]
[346709492,1735223439133,-500.0,0.00019189,2]
[346709493,1735223439143,-504.08,0.00019189,2]
[346709494,1735223439152,-500.0,0.00019189,2]
[346709495,1735223439162,-500.0,0.00019189,2]
[346709496,1735223439174,-404.55,0.00019189,2]
[346709497,1735223439183,-502.67327573,0.00019189,2]
[346709498,1735223439194,-1444.39823167,0.00019189,2]
[346709499,1735223439203,-500.0,0.0001919,2]
[346709500,1735223439212,-500.0,0.0001919,2]
[346709501,1735223439222,-500.0,0.0001919,2]
[346709502,1735223439231,-61.35019578,0.0001919,2]
[346709503,1735223439252,-438.64980422,0.0001919,2]
[346709504,1735223439262,-500.0,0.0001919,2]
[346709505,1735223439271,-500.0,0.0001919,2]
[346709506,1735223439283,-500.0,0.0001919,2]
[346709507,1735223439292,-211.53,0.0001919,2]
[346709508,1735223439301,-500.0,0.0001919,2]
[346709509,1735223439311,-572.88,0.0001919,2]
[346709510,1735223439320,-134.72721849,0.0001919,2]
[346709511,1735223439331,-265.93735026,0.0001919,2]
[346709512,1735223439343,-99.33543125,0.0001919,2]
[346709513,1735223439353,-439.01999921,0.0001919,2]
[346709514,1735223439364,-60.98000079,0.0001919,2]
[346709515,1735223439374,-405.74833787,0.0001919,2]
[346709534,1735223440422,-94.25166213,0.0001919,2]
[346709536,1735223440432,-500.0,0.0001919,2]
[346709537,1735223440442,-570.76,0.0001919,2]
[346709538,1735223440452,-500.0,0.0001919,2]
[346709539,1735223440463,-500.0,0.0001919,2]
[346709540,1735223440472,-500.0,0.0001919,2]
[346709542,1735223440482,-500.0,0.0001919,2]
[346709544,1735223440491,-500.0,0.0001919,2]
[346709546,1735223440501,-297.88332253,0.0001919,2]
[346709548,1735223440513,-220.64436237,0.0001919,2]
[346709549,1735223440523,-500.0,0.0001919,2]
[346709550,1735223440534,-500.0,0.0001919,2]